bitfinex-derivatives/quotes_ETHF0:USTF0_20250329
["timestamp","ask_amount","ask_price","bid_price","bid_amount"]
[1743288658502,1.50616674,1814.2,1814.1,3.35249]
[1743288658503,0.00826674,1814.2,1814.1,3.35249]
[1743288659307,0.00826674,1814.2,1814.1,2.2496]
[1743288659308,1.11109674,1814.2,1814.1,2.2496]
[1743288660911,2.56569674,1814.2,1814.1,2.2496]
[1743288661815,0.00826674,1814.2,1814.1,3.35249]
[1743288662404,0.00826674,1814.2,1814.1,5.85249]
[1743288664022,1.10259,1814.6,1814.1,5.85249]
[1743288664225,1.10259,1814.6,1814.4,4.31047]
[1743288664423,1.10259,1814.6,1814.5,6.83435]
[1743288664730,1.10259,1814.6,1814.5,5.7317]
[1743288665130,1.10259,1814.6,1814.5,1.4237]
[1743288665326,1.81149,1814.6,1814.5,4.9837]
[1743288665531,1.81149,1814.6,1814.5,3.56]
[1743288665731,1.81149,1814.6,1814.5,1.3968]
[1743288670638,1.10265,1814.5,1814.4,3.56926674]
[1743288670935,3.20355,1814.5,1814.4,0.00826674]
[1743288676639,1.10289,1814.1,1814.0,3.2078]
[1743288676938,2.75677,1814.4,1813.6,3.2078]
[1743288676939,1.10313,1813.7,1813.6,3.2078]
[1743288677143,1.10325,1813.5,1813.4,1.3815]
[1743288677734,2.49905,1813.5,1813.4,1.3815]
[1743288680045,2.49905,1813.5,1813.3,3.57226674]
[1743288680046,1.10331,1813.4,1813.3,3.57226674]
[1743288680236,2.49911,1813.4,1813.3,3.57226674]
[1743288685645,2.49911,1813.4,1813.3,0.00826674]
[1743288690742,1.3958,1813.4,1813.3,2.61014674]
[1743288690945,2.49911,1813.4,1813.3,1.50676674]
[1743288691145,2.49911,1813.4,1813.3,4.71456674]
[1743288691346,2.49911,1813.4,1813.3,5.42746674]
[1743288691547,2.49911,1813.4,1813.3,2.21966674]
[1743288692842,2.49911,1813.4,1813.3,5.42746674]
[1743288694344,2.49911,1813.4,1813.3,2.21966674]
[1743288694548,2.49911,1813.4,1813.3,5.42746674]
[1743288697946,2.49911,1813.4,1813.3,3.21606674]
[1743288699856,2.49911,1813.4,1813.3,0.00826674]
[1743288700351,2.49911,1813.4,1813.3,1.43856674]
[1743288701249,2.49911,1813.4,1813.3,2.18716674]
[1743288701643,1.10327,1813.5,1813.3,5.73416674]
[1743288701847,1.46466674,1813.6,1813.4,2.1515]
[1743288701848,0.00826674,1813.6,1813.4,2.1515]
[1743288702043,1.1031,1813.8,1813.5,4.6512]
[1743288702241,1.1031,1813.8,1813.7,3.2078]
[1743288702444,1.10313,1813.7,1813.6,4.9944]
[1743288702653,1.10313,1813.7,1813.6,3.551]
[1743288703941,2.54583,1813.7,1813.6,3.551]
[1743288708352,1.10325,1813.5,1813.4,4.2702]
[1743288709053,2.48405,1813.5,1813.4,4.2702]
[1743288711149,2.48405,1813.5,1813.3,3.21606674]
[1743288711150,1.10331,1813.4,1813.3,3.21606674]
[1743288711353,3.17511,1813.4,1813.3,0.00826674]
[1743288715355,3.17511,1813.4,1813.3,3.21606674]
[1743288715951,3.17511,1813.4,1813.3,4.66146674]
[1743288716257,3.17511,1813.4,1813.3,1.45366674]
[1743288716458,3.17511,1813.4,1813.3,0.00826674]
[1743288731867,1.10356,1813.0,1812.9,3.538]
[1743288732068,1.10356,1813.0,1812.9,8.251]
[1743288732565,1.10356,1813.0,1812.9,4.713]
[1743288732761,2.59386,1813.0,1812.9,4.713]
[1743288732968,3.33606,1813.0,1812.9,4.713]
[1743288734067,2.59386,1813.0,1812.9,4.713]
[1743288734366,2.59386,1813.0,1812.9,1.5052]
[1743288734964,2.59386,1813.0,1812.9,4.713]
[1743288735165,1.10345,1813.2,1812.9,4.713]
[1743288735362,1.10341,1813.3,1813.1,4.3113]
[1743288735560,1.10341,1813.3,1813.2,2.1179]
[1743288736266,1.10344,1813.2,1813.1,3.539]
[1743288736466,1.10344,1813.2,1813.1,5.6167]
[1743288736970,2.58164,1813.2,1813.1,5.6167]
[1743288740668,3.2078,1813.6,1813.2,1.10338]
[1743288740864,1.10333,1813.4,1813.3,0.7315]
[1743288741064,1.10333,1813.4,1813.3,5.3036]
[1743288742073,1.10333,1813.4,1813.3,2.0958]
[1743288746874,1.4979,1813.5,1813.3,3.19918]
[1743288747070,3.2078,1813.7,1813.4,3.27669]
[1743288747275,1.10319,1813.6,1813.5,1.4333]
[1743288747668,1.10325,1813.5,1813.4,4.2781]
[1743288747870,3.21865,1813.5,1813.4,5.7296]
[1743288748379,3.21865,1813.5,1813.4,4.9895]
[1743288750780,2.51125,1813.5,1813.4,4.9895]
[1743288751271,1.10323,1813.6,1813.4,6.09277]
[1743288751478,1.10323,1813.6,1813.5,1.4024]
[1743288753181,1.4552,1813.7,1813.5,2.50565]
[1743288753479,1.45116674,1813.8,1813.6,1.10315]
[1743288753480,0.73956674,1813.8,1813.6,1.10315]
[1743288753680,1.84263674,1813.8,1813.7,0.7394]
[1743288753977,1.11133674,1813.8,1813.7,0.7394]
[1743288754176,1.11133674,1813.8,1813.7,2.1669]
[1743288754377,0.00826674,1813.8,1813.7,6.81003]
[1743288755376,1.11133674,1813.8,1813.7,6.81003]
[1743288755581,0.00826674,1813.8,1813.7,6.81003]
[1743288757087,1.10291,1814.1,1813.7,8.7589]
[1743288757387,1.10291,1814.1,1814.0,3.2078]
[1743288757589,1.83991,1814.1,1814.0,3.2078]
[1743288764792,1.83991,1814.1,1813.9,1.41066674]
[1743288764793,1.10295,1814.0,1813.9,1.41066674]
[1743288764993,1.10295,1814.0,1813.9,4.61846674]
[1743288766891,0.00826674,1814.2,1814.1,1.10289]
[1743288767090,0.00826674,1814.2,1814.1,7.85869]
[1743288767592,0.00826674,1814.2,1814.1,9.23529]
[1743288770494,0.00826674,1814.2,1814.1,8.1324]
[1743288770696,1.11109674,1814.2,1814.1,4.5844]
[1743288771001,1.11109674,1814.2,1814.1,8.1284]
[1743288771703,0.00826674,1814.2,1814.1,9.23129]
[1743288772999,0.00826674,1814.2,1814.1,11.73129]
[1743288774601,1.10265,1814.5,1814.4,1.10268]
[1743288774798,1.10265,1814.5,1814.4,7.85748]
[1743288775603,1.10265,1814.5,1814.4,9.26788]
[1743288776094,2.51245,1814.5,1814.4,9.26788]
[1743288776295,1.4098,1814.5,1814.4,9.26788]
[1743288776492,0.72246674,1814.6,1814.5,1.10265]
[1743288776703,0.72246674,1814.6,1814.5,2.51305]
[1743288776704,3.23485674,1814.6,1814.5,2.51305]
[1743288776895,1.41806674,1814.6,1814.5,3.06425]
[1743288777093,1.41806674,1814.6,1814.5,2.51305]
[1743288777298,0.00826674,1814.6,1814.5,3.25875]
[1743288779302,1.10249,1814.8,1814.6,1.10259]
[1743288779508,1.4713,1814.7,1814.6,4.31039]
[1743288779703,0.7296,1814.8,1814.7,1.10252]
[1743288779908,1.10242,1814.9,1814.6,7.4722]
[1743288780207,1.1024,1814.9,1814.8,1.10244]
[1743288780400,3.2078,1815.5,1814.8,3.2078]
[1743288780707,1.4713,1815.3,1815.0,3.2078]
[1743288780905,2.57346,1815.3,1815.1,1.80663]
[1743288781096,2.57346,1815.3,1815.2,4.67022]
[1743288781497,2.57346,1815.3,1815.2,7.87802]
[1743288781498,1.4713,1815.3,1815.2,7.87802]
[1743288781703,2.57346,1815.3,1815.2,6.7758]
[1743288783003,1.4713,1815.3,1815.2,6.7758]
[1743288783211,2.57346,1815.3,1815.2,6.7758]
[1743288783597,1.4713,1815.3,1815.2,7.87802]
[1743288783802,2.57346,1815.3,1815.2,6.7758]
[1743288784610,1.4713,1815.3,1815.2,6.7758]
[1743288784913,1.4713,1815.3,1815.2,7.87802]
[1743288786610,3.2078,1815.7,1815.2,9.2758]
[1743288786809,2.51679,1815.6,1815.4,4.30987]
[1743288787011,2.51684,1815.5,1815.4,3.2078]
[1743288787312,2.51684,1815.5,1815.4,6.7778]
[1743288787709,1.4148,1815.5,1815.4,7.8799]
[1743288787904,2.51684,1815.5,1815.4,8.6181]
[1743288789218,1.4148,1815.5,1815.4,5.4103]
[1743288789517,2.51684,1815.5,1815.4,4.3082]
[1743288789815,2.51684,1815.5,1815.4,3.57]
[1743288792308,2.51684,1815.5,1815.4,7.8799]
[1743288792309,1.4148,1815.5,1815.4,7.8799]
[1743288792911,2.51684,1815.5,1815.4,7.8799]
[1743288793210,2.51684,1815.5,1815.4,6.7778]
[1743288793720,1.4148,1815.5,1815.4,7.8799]
[1743288794419,2.51684,1815.5,1815.4,7.8799]
[1743288794720,1.4148,1815.5,1815.4,7.8799]
[1743288795415,1.3996,1815.7,1815.5,1.10198]
[1743288795619,1.422,1815.6,1815.5,1.10198]
[1743288796016,1.422,1815.6,1815.5,2.56938]
[1743288796318,2.52398,1815.6,1815.5,2.56938]
[1743288796519,1.422,1815.6,1815.5,2.56938]
[1743288797421,1.422,1815.6,1815.5,5.77718]
[1743288800618,2.52398,1815.6,1815.5,4.6752]
[1743288802917,2.52398,1815.6,1815.5,8.2322]
[1743288803815,3.2078,1816.0,1815.5,10.7322]
[1743288804021,1.3815,1815.9,1815.6,3.21285]
[1743288804212,1.10192,1815.7,1815.6,3.562]
[1743288805124,2.51372,1815.7,1815.6,3.562]
[1743288807129,1.10198,1815.6,1815.5,1.3959]
[1743288807428,2.56448,1815.6,1815.5,1.3959]
[1743288807626,2.56448,1815.6,1815.5,4.9549]
[1743288808824,2.56448,1815.6,1815.5,4.9539]
[1743288810423,2.56448,1815.6,1815.5,1.3959]
[1743288810625,2.56448,1815.6,1815.5,4.9519]
[1743288812733,2.56448,1815.6,1815.5,1.3959]
[1743288812933,2.56448,1815.6,1815.5,4.9489]
[1743288814135,2.56448,1815.6,1815.5,1.3959]
[1743288814435,2.56448,1815.6,1815.5,4.9469]
[1743288816225,2.56448,1815.6,1815.5,5.4981]
[1743288816429,2.56448,1815.6,1815.5,4.9469]
[1743288816831,2.56448,1815.6,1815.5,5.4981]
[1743288817034,2.56448,1815.6,1815.5,4.9469]
[1743288817230,2.56448,1815.6,1815.5,5.4981]
[1743288817535,2.56448,1815.6,1815.5,4.9469]
[1743288817936,2.56448,1815.6,1815.5,5.4981]
[1743288818137,2.56448,1815.6,1815.5,4.9469]
[1743288818836,2.56448,1815.6,1815.5,5.4981]
[1743288819235,2.56448,1815.6,1815.5,4.9469]
[1743288819642,2.56448,1815.6,1815.5,5.4981]
[1743288819846,2.56448,1815.6,1815.5,4.9469]
[1743288829754,2.56448,1815.6,1815.5,6.04894]
[1743288830156,2.56448,1815.6,1815.5,4.9469]
[1743288831656,1.4625,1815.6,1815.5,6.04894]
[1743288831852,2.56448,1815.6,1815.5,6.04894]
[1743288836258,2.56448,1815.6,1815.5,6.60014]
[1743288841356,1.4625,1815.6,1815.5,6.60014]
[1743288841754,2.56448,1815.6,1815.5,6.60014]
[1743288844060,23.39423406,1816.0,1815.5,6.60014]
[1743288844254,25.93449406,1816.0,1815.7,3.2078]
[1743288844461,25.93449406,1816.0,1815.9,4.3096]
[1743288844462,24.14453406,1816.0,1815.9,4.3096]
[1743288844861,24.14453406,1816.0,1815.9,5.76]
[1743288845563,25.24627406,1816.0,1815.9,5.76]
[1743288846463,24.14453406,1816.0,1815.9,5.76]
[1743288846664,25.24627406,1816.0,1815.9,5.76]
[1743288846864,24.14453406,1816.0,1815.9,5.76]
[1743288847066,0.7503,1816.0,1815.9,5.76]
[1743288848871,1.10167,1816.1,1816.0,1.1017]
[1743288849066,1.10167,1816.1,1816.0,2.4911]
[1743288849262,1.10164,1816.2,1816.0,2.4911]
[1743288849462,1.10164,1816.2,1816.1,4.9234]
[1743288849663,2.46564,1816.2,1816.1,4.9234]
[1743288850267,1.364,1816.2,1816.1,9.23287]
[1743288850464,0.7279,1816.3,1816.2,1.10161]
[1743288850767,2.0919,1816.3,1816.2,3.22951]
[1743288851170,3.19345,1816.3,1816.2,3.22951]
[1743288851371,3.19345,1816.3,1816.2,2.1279]
[1743288851768,3.19345,1816.3,1816.2,3.22951]
[1743288852975,3.19345,1816.3,1816.2,1.3894]
[1743288854068,1.10161,1816.2,1816.1,6.75006674]
[1743288854268,2.52261,1816.2,1816.1,6.75006674]
[1743288857470,2.52261,1816.2,1816.1,3.54226674]
[1743288857976,2.52261,1816.2,1816.1,4.64393674]
[1743288858176,2.52261,1816.2,1816.1,3.54226674]
[1743288858475,1.421,1816.2,1816.1,4.64393674]
[1743288858675,1.82949,1816.3,1816.2,1.10161]
[1743288858876,3.30949,1816.3,1816.2,1.10161]
[1743288859974,3.30949,1816.3,1816.1,5.39149674]
[1743288860373,3.30949,1816.3,1816.2,1.10161]
[1743288860679,3.30949,1816.3,1816.2,4.30941]
[1743288862076,1.82949,1816.3,1816.2,4.30941]
[1743288862275,3.20741,1816.4,1816.3,1.10155]
[1743288862479,1.10155,1816.3,1816.2,4.30938]
[1743288864583,2.1059,1816.4,1816.3,1.10155]
[1743288864584,3.20741,1816.4,1816.3,1.10155]
[1743288866182,1.10149,1816.4,1816.3,1.10151]
[1743288866393,23.39423406,1816.5,1816.4,1.10149]
[1743288866583,1.10139,1816.6,1816.4,9.27416]
[1743288866784,2.50079,1816.6,1816.4,9.27416]
[1743288867284,2.50079,1816.6,1816.4,6.7408]
[1743288867485,2.50083,1816.5,1816.4,7.84226]
[1743288867784,1.3994,1816.5,1816.4,7.84226]
[1743288868182,2.50083,1816.5,1816.4,7.84226]
[1743288868485,1.3994,1816.5,1816.4,7.84226]
[1743288868685,1.10141,1816.6,1816.5,1.10143]
[1743288868887,1.10141,1816.6,1816.5,1.78853]
[1743288869586,1.10141,1816.6,1816.5,0.6871]
[1743288870188,1.10143,1816.5,1816.4,7.84228]
[1743288870490,1.3825,1816.5,1816.4,7.84228]
[1743288872286,2.48393,1816.5,1816.4,3.533]
[1743288872586,3.93193,1816.5,1816.4,3.533]
[1743288875994,3.93193,1816.5,1816.4,4.0842]
[1743288876284,3.93193,1816.5,1816.4,5.5123]
[1743288884491,3.93193,1816.5,1816.4,6.61379]
[1743288884894,3.2078,1816.9,1816.4,5.5123]
[1743288885195,2.58946,1816.7,1816.6,1.10132]
[1743288885591,2.58946,1816.7,1816.5,4.6379]
[1743288885592,1.10137,1816.6,1816.5,5.73928]
[1743288885789,1.4881,1816.7,1816.5,4.6379]
[1743288885992,1.10137,1816.6,1816.5,5.73927]
[1743288889593,1.10137,1816.6,1816.5,2.53147]
[1743288889792,1.10137,1816.6,1816.5,5.73927]
[1743288889993,1.10137,1816.6,1816.5,5.00937]
[1743288891090,1.10137,1816.6,1816.5,3.908]
[1743288891300,1.10137,1816.6,1816.5,5.00943]
[1743288893696,1.4881,1816.7,1816.5,3.908]
[1743288893896,2.58945,1816.7,1816.6,1.10137]
[1743288894597,1.10137,1816.6,1816.5,5.00939]
[1743288895996,1.4881,1816.7,1816.5,5.56059]
[1743288896296,2.58941,1816.7,1816.6,1.3715]
[1743288899302,2.58941,1816.7,1816.6,2.47287]
[1743288899505,2.58941,1816.7,1816.6,2.1021]
[1743288900601,2.58941,1816.7,1816.6,1.3715]
[1743288904912,1.4881,1816.7,1816.6,2.47287]
[1743288905512,1.4166,1816.8,1816.6,2.47287]
[1743288905709,27.0399198,1817.2,1816.7,4.9602]
[1743288906015,1.10107,1817.1,1817.0,3.2078]
[1743288906309,1.10107,1817.1,1817.0,8.168]
[1743288906514,1.10107,1817.1,1817.0,8.9068]
[1743288906711,0.6815,1817.2,1817.0,10.0079]
[1743288906915,3.20491,1817.2,1817.1,1.4899]
[1743288907810,1.78251,1817.2,1817.1,1.4899]
[1743288909214,3.20491,1817.2,1817.1,1.4899]
[1743288910811,3.20491,1817.2,1817.1,2.59097]
[1743288911013,3.20491,1817.2,1817.1,1.4899]
[1743288911929,0.7457,1817.3,1817.1,2.59093]
[1743288911930,1.10097,1817.3,1817.1,2.59093]
[1743288912124,23.39423406,1817.6,1817.5,1.10083]
[1743288912328,23.39423406,1817.6,1817.5,7.83963]
[1743288913532,0.7117,1817.7,1817.6,1.10077]
[1743288913725,0.7117,1817.7,1817.6,3.27237]
[1743288914032,0.733,1817.8,1817.7,1.1007]
[1743288914224,2.53701,1817.9,1817.7,6.2824]
[1743288914424,1.4364,1817.9,1817.8,4.63164]
[1743288914624,23.39423406,1818.3,1817.9,1.10058]
[1743288914828,1.10052,1818.0,1817.9,3.531]
[1743288915024,1.10052,1818.0,1817.9,3.53926674]
[1743288915943,2.55742,1818.0,1817.9,3.53926674]
[1743288916229,2.55742,1818.0,1817.6,6.7398]
[1743288916230,1.1007,1817.7,1817.6,6.7398]
[1743288917424,2.5576,1817.7,1817.6,6.7398]
[1743288919132,1.1007,1817.7,1817.6,6.7398]
[1743288919335,2.08156674,1817.8,1817.6,7.4741]
[1743288919534,2.08156674,1817.8,1817.7,1.4397]
[1743288919535,3.18225674,1817.8,1817.7,1.4397]
[1743288919841,0.00826674,1817.8,1817.7,2.5404]
[1743288921038,1.10890674,1817.8,1817.7,1.4397]
[1743288921235,1.10890674,1817.8,1817.7,2.5404]
[1743288921442,0.00826674,1817.8,1817.7,2.5404]
[1743288925228,1.10890674,1817.8,1817.7,6.0784]
[1743288926236,0.00826674,1817.8,1817.7,6.0784]
[1743288926433,1.10890674,1817.8,1817.7,6.0784]
[1743288926833,0.00826674,1817.8,1817.7,6.0784]
[1743288928946,1.10890674,1817.8,1817.7,6.0784]
[1743288930445,0.00826674,1817.8,1817.7,6.0784]
[1743288936049,0.00826674,1817.8,1817.7,6.6288]
[1743288943556,0.00826674,1817.8,1817.7,9.8366]
[1743288944451,0.00826674,1817.8,1817.7,6.6288]
[1743288944860,0.00826674,1817.8,1817.7,9.8366]
[1743288951259,2.2085,1818.0,1817.9,1.10058]
[1743288951458,2.2085,1818.0,1817.9,4.30838]
[1743288951860,2.2085,1818.0,1817.9,5.04238]
[1743288955966,2.2085,1818.0,1817.9,5.59278]
[1743288956263,2.2085,1818.0,1817.9,5.04238]
[1743288956463,2.2085,1818.0,1817.9,5.59278]
[1743288957566,2.2085,1818.0,1817.9,4.85878]
[1743288958266,2.2085,1818.0,1817.9,6.36658]
[1743288958459,2.2085,1818.0,1817.9,3.15878]
[1743288958661,2.2085,1818.0,1817.9,6.36658]
[1743288959165,2.2085,1818.0,1817.9,3.15878]
[1743288959464,2.2085,1818.0,1817.9,6.36658]
[1743288960361,3.30902,1818.0,1817.9,9.89558]
[1743288960666,3.30902,1818.0,1817.9,8.38778]
[1743288961062,2.2085,1818.0,1817.9,8.38778]
[1743288963069,3.30902,1818.0,1817.9,8.38778]
[1743288964371,3.30902,1818.0,1817.9,7.2872]
[1743288964567,3.30902,1818.0,1817.9,8.38778]
[1743288966962,3.30902,1818.0,1817.9,7.2872]
[1743288967366,1.10064,1817.8,1817.7,3.7582]
[1743288967561,1.10064,1817.8,1817.7,6.7368]
[1743288968172,1.79354,1817.8,1817.7,6.7368]
[1743288971876,1.79354,1817.8,1817.7,7.8375]
[1743288972076,0.6929,1817.8,1817.7,9.2159]
[1743288973068,0.6929,1817.8,1817.7,9.9598]
[1743288973776,0.6929,1817.8,1817.7,9.2159]
[1743288973978,3.22274,1817.8,1817.7,9.2159]
[1743288974174,2.1221,1817.8,1817.7,9.2159]
[1743288974966,3.22274,1817.8,1817.7,9.2159]
[1743288975678,2.1221,1817.8,1817.7,9.2159]
[1743288976680,2.1221,1817.8,1817.7,9.7663]
[1743288979382,0.6929,1817.8,1817.7,9.7663]
[1743288980480,2.1707,1817.8,1817.7,9.7663]
[1743288984076,0.7407,1818.0,1817.7,8.6656]
[1743288984379,2.0912,1818.1,1818.0,1.10052]
[1743288984685,0.7139,1818.1,1818.0,6.04262]
[1743288990684,1.81436,1818.1,1818.0,4.9421]
[1743288990874,3.22936,1818.1,1818.0,4.9411]
[1743288992283,1.10052,1818.0,1817.9,3.2078]
[1743288992478,2.56152,1818.0,1817.9,8.1182]
[1743288994184,2.56152,1818.0,1817.9,4.9104]
[1743288994489,2.56152,1818.0,1817.9,8.1182]
[1743288995991,2.56152,1818.0,1817.9,8.6686]
[1743288996188,2.56152,1818.0,1817.9,8.1182]
[1743288996490,2.56152,1818.0,1817.9,9.76918]
[1743288996692,1.461,1818.0,1817.9,9.76918]
[1743288996990,2.56152,1818.0,1817.9,8.6686]
[1743289004995,2.56152,1818.0,1817.9,5.4608]
[1743289005903,2.56152,1818.0,1817.9,1.9328]
[1743289006110,2.56152,1818.0,1817.9,3.528]
[1743289008403,2.56152,1818.0,1817.8,4.6225]
[1743289008404,1.10058,1817.9,1817.8,4.6225]
[1743289008609,3.26308,1817.9,1817.8,3.2078]
[1743289009808,1.1007,1817.7,1817.6,3.2078]
[1743289010005,1.10077,1817.6,1817.5,0.00826674]
[1743289010209,1.78737,1817.6,1817.5,0.00826674]
[1743289010709,1.10089,1817.4,1817.3,4.9043]
[1743289011011,1.10095,1817.3,1817.2,6.7358]
[1743289011408,1.431,1817.4,1817.2,7.83679]
[1743289011605,1.431,1817.4,1817.3,3.18395]
[1743289011810,0.6986,1817.5,1817.3,2.083]
[1743289012010,3.23043,1817.5,1817.4,4.5841]
[1743289021107,3.23043,1817.5,1817.4,1.3763]
[1743289025111,1.10095,1817.3,1817.2,3.53726674]
[1743289025316,1.10095,1817.3,1817.2,4.93536674]
[1743289025614,1.10095,1817.3,1817.2,1.40636674]
[1743289025805,1.79385,1817.3,1817.2,1.40636674]
[1743289026812,1.79385,1817.3,1817.2,4.61416674]
[1743289026813,1.10095,1817.3,1817.2,4.61416674]
[1743289027007,2.48883,1817.4,1817.2,6.41412674]
[1743289027213,1.10093,1817.4,1817.3,1.3981]
[1743289027412,1.10093,1817.4,1817.3,2.0795]
[1743289027818,1.10093,1817.4,1817.3,3.18045]
[1743289028018,1.10093,1817.4,1817.3,2.0795]
[1743289030019,1.3879,1817.6,1817.3,2.0795]
[1743289030318,1.10083,1817.5,1817.4,8.2261]
[1743289031014,0.71446674,1817.7,1817.4,8.2261]
[1743289031220,0.71446674,1817.7,1817.5,2.1896]
[1743289031516,1.81516674,1817.7,1817.6,1.5011]
[1743289031719,1.81516674,1817.7,1817.6,2.216]
[1743289034515,1.10896674,1817.7,1817.6,2.216]
[1743289035925,1.10896674,1817.7,1817.6,2.7664]
[1743289036115,1.10896674,1817.7,1817.6,2.216]
[1743289037424,1.10896674,1817.7,1817.6,2.7664]
[1743289038012,1.10896674,1817.7,1817.6,5.4238]
[1743289039025,1.10896674,1817.7,1817.6,5.9742]
[1743289039226,1.10896674,1817.7,1817.6,5.4238]
[1743289039416,1.10896674,1817.7,1817.6,5.9742]
[1743289039622,1.10896674,1817.7,1817.6,5.4238]
[1743289039825,2.51976674,1817.7,1817.6,5.4238]
[1743289040528,2.51976674,1817.7,1817.6,5.2593]
[1743289040820,2.51976674,1817.7,1817.6,4.7089]
[1743289041020,2.51976674,1817.7,1817.6,5.2593]
[1743289041217,2.51976674,1817.7,1817.6,4.7089]
[1743289041925,2.51976674,1817.7,1817.6,5.2593]
[1743289042124,2.51976674,1817.7,1817.6,4.7089]
[1743289042426,2.51976674,1817.7,1817.6,3.2078]
[1743289042623,2.51976674,1817.7,1817.6,6.7358]
[1743289044026,2.51976674,1817.7,1817.6,3.2078]
[1743289045919,1.10077,1817.6,1817.5,4.9149]
[1743289046118,3.24997,1817.6,1817.5,4.9149]
[1743289053526,0.00826674,1817.7,1817.5,4.9149]
[1743289053728,0.00826674,1817.7,1817.6,3.26127]
[1743289054027,0.00826674,1817.7,1817.6,4.00227]
[1743289056431,0.00826674,1817.7,1817.6,4.55267]
[1743289057731,0.00826674,1817.7,1817.6,7.76047]
[1743289058333,0.00826674,1817.7,1817.6,4.55267]
[1743289058533,0.00826674,1817.7,1817.6,7.76047]
[1743289066444,26.14506406,1818.4,1817.6,7.76047]
[1743289066445,26.14506406,1818.4,1817.9,1.10053]
[1743289066737,1.1005,1818.1,1818.0,3.528]
[1743289066937,1.1005,1818.1,1818.0,4.9973]
[1743289067138,2.5243,1818.1,1818.0,4.9973]
[1743289071337,2.5243,1818.1,1818.0,6.09782]
[1743289072154,1.4238,1818.1,1818.0,6.09782]
[1743289072331,2.53895,1818.2,1818.1,1.10046]
[1743289072536,1.8364,1818.2,1818.1,5.68426]
[1743289072943,1.8364,1818.2,1818.1,4.5838]
[1743289073141,3.2326,1818.2,1818.1,4.5838]
[1743289073440,3.2326,1818.2,1818.1,6.7348]
[1743289074546,3.2326,1818.2,1818.1,8.1859]
[1743289078744,3.2326,1818.2,1818.1,4.9781]
[1743289084750,3.2326,1818.2,1818.1,6.07856]
[1743289086546,3.2326,1818.2,1818.1,4.9781]
[1743289089544,3.2326,1818.2,1818.1,3.527]
[1743289090551,3.2326,1818.2,1818.1,6.09046]
[1743289091050,3.2326,1818.2,1818.1,4.99]
[1743289091353,3.2326,1818.2,1818.1,6.09046]
[1743289091552,3.2326,1818.2,1818.1,4.99]
[1743289091753,3.2326,1818.2,1818.1,3.527]
[1743289093053,2.1322,1818.2,1818.1,6.02296]
[1743289093255,3.2326,1818.2,1818.1,6.02296]
[1743289093648,3.2326,1818.2,1818.1,4.9225]
[1743289094152,3.2326,1818.2,1818.1,6.02296]
[1743289094349,3.2326,1818.2,1818.1,4.9225]
[1743289094751,3.2326,1818.2,1818.1,6.02296]
[1743289095153,3.2326,1818.2,1818.1,4.9225]
[1743289096062,3.2326,1818.2,1818.1,6.02296]
[1743289096257,3.2326,1818.2,1818.1,4.9225]
[1743289096961,2.1322,1818.2,1818.1,6.02296]
[1743289097359,2.1322,1818.2,1818.1,6.75576]
[1743289097657,0.7139,1818.3,1818.2,1.1004]
[1743289097958,1.81426,1818.3,1818.2,1.4746]
[1743289100162,0.7139,1818.3,1818.2,2.575]
[1743289100364,1.1004,1818.2,1818.1,3.527]
[1743289100662,3.1907,1818.2,1818.1,3.527]
[1743289101662,3.1907,1818.2,1818.1,4.9746]
[1743289104465,3.1907,1818.2,1818.1,3.527]
[1743289104868,1.10046,1818.1,1818.0,3.2078]
[1743289105069,4.18109,1818.1,1817.8,3.2078]
[1743289105363,0.6857,1818.0,1817.7,1.4452]
[1743289105563,1.10061,1817.9,1817.8,1.10064]
[1743289105760,1.10058,1817.9,1817.8,1.4452]
[1743289105960,3.28088,1817.9,1817.8,1.4452]
[1743289106362,3.28088,1817.9,1817.8,2.54584]
[1743289107070,0.7504,1817.9,1817.8,2.54584]
[1743289107268,0.7504,1817.9,1817.8,3.26154]
[1743289108169,1.85098,1817.9,1817.8,3.26154]
[1743289109468,1.85098,1817.9,1817.8,2.1609]
[1743289109670,1.85098,1817.9,1817.8,3.26154]
[1743289110358,1.10054,1818.0,1817.9,1.10058]
[1743289110557,1.10054,1818.0,1817.9,5.7348]
[1743289111063,1.4076,1818.2,1817.9,8.9426]
[1743289111267,1.10047,1818.1,1818.0,2.5772]
[1743289118366,1.10046,1818.1,1818.0,2.57718]
[1743289120167,26.14476406,1818.6,1818.0,1.4767]
[1743289120168,23.39423406,1818.6,1818.0,1.4767]
[1743289120372,1.10037,1818.3,1818.2,1.10039]
[1743289120672,1.10037,1818.3,1818.2,5.604]
[1743289120970,1.10037,1818.3,1818.2,6.7044]
[1743289121174,1.10037,1818.3,1818.2,5.604]
[1743289121576,2.51577,1818.3,1818.2,5.604]
[1743289122371,2.51577,1818.3,1818.2,3.526]
[1743289123368,2.51577,1818.3,1818.2,4.9403]
[1743289123770,1.4154,1818.3,1818.2,6.0407]
[1743289123975,2.51574,1818.3,1818.2,9.2485]
[1743289124370,2.51574,1818.3,1818.2,6.7338]
[1743289130479,2.51574,1818.3,1818.2,8.1691]
[1743289135278,1.10034,1818.3,1818.2,9.2695]
[1743289135484,1.82491,1818.4,1818.3,1.10034]
[1743289135681,3.27931,1818.4,1818.3,1.3685]
[1743289140586,1.10034,1818.3,1818.2,6.7328]
[1743289140775,2.56224,1818.3,1818.2,8.1363]
[1743289143584,2.56224,1818.3,1818.2,4.9285]
[1743289143992,2.56224,1818.3,1818.2,8.1363]
[1743289146388,1.1004,1818.2,1818.1,0.00826674]
[1743289146692,2.546,1818.2,1818.1,0.00826674]